fUSD/lending_fUSD_20260106
["ID","MTS","AMOUNT","RATE_DAILY","PERIOD"]
[400511050,1767685839504,-999.99,0.00016922,2]
[400511052,1767685839513,-499.99,0.00016922,2]
[400511054,1767685839523,-1547.8,0.00016922,2]
[400511056,1767685839532,-9999.99,0.00016922,2]
[400511058,1767685839541,-1603.82,0.00016922,2]
[400511060,1767685839550,-426.08,0.00016922,2]
[400511061,1767685839559,-9999.99,0.00016922,2]
[400511062,1767685839569,-150.99,0.00016922,2]
[400511063,1767685839578,-2818.14,0.00016922,2]
[400511064,1767685839591,-150.99,0.00016922,2]
[400511065,1767685839600,-5214.22,0.00016922,2]
[400511066,1767685839611,-347.67,0.00016922,2]
[400511067,1767685839623,-6529.86,0.00016922,2]
[400511068,1767685839632,-9999.99,0.00016922,2]
[400511069,1767685839641,-299.99,0.00016922,4]
[400511070,1767685839650,-180.62,0.00016952,2]
[400511071,1767685839661,-151.0,0.00016977,2]
[400511072,1767685839671,-151.0,0.00016977,2]
[400511073,1767685839682,-250.0,0.00017,2]
[400511074,1767685839692,-355.56,0.00017045,2]
[400511075,1767685839701,-500.0,0.00017055,2]
[400511076,1767685839710,-166.66,0.00017056,2]
[400511077,1767685839719,-500.0,0.00017123,2]
[400511078,1767685839728,-250.0,0.00017153,2]
[400511080,1767685839737,-1558.02,0.00017154,2]
[400511082,1767685839747,-1000.0,0.0001725,2]
[400511084,1767685839756,-355.56,0.00017319,2]
[400511086,1767685839766,-500.0,0.00017489,2]
[400511088,1767685839776,-500.0,0.00017489,2]
[400511090,1767685839785,-500.0,0.00017489,2]
[400511092,1767685839795,-500.0,0.00017489,2]
[400511093,1767685839805,-2000.0,0.000175,2]
[400511095,1767685839815,-444.41864031,0.00017515,2]
[400511098,1767685839824,-355.56,0.00017593,2]
[400511100,1767685839833,-162.55,0.00017602,2]
[400511101,1767685839843,-169.4644398,0.00017615,2]
[400511104,1767685839852,-71299.3492848,0.00017615,2]
[400511106,1767685839862,-5945.6317833,0.00017615,2]
[400511108,1767685839872,-15389.2356633,0.00017635,2]
[400511110,1767685839884,-9640.8800433,0.00017697,2]
[400511112,1767685839893,-300.0,0.00017727,2]
[400511114,1767685839903,-300.0,0.00017741,2]
[400511116,1767685839912,-300.0,0.00017744,2]
[400511118,1767685839922,-300.0,0.00017744,2]
[400511120,1767685839931,-300.0,0.00017786,2]
[400511122,1767685839940,-300.0,0.0001779,2]
[400511124,1767685839950,-300.0,0.00017813,2]
[400511126,1767685839959,-216.69892,0.0001782,2]
[400511128,1767685839969,-216.69893,0.0001782,2]
[400511130,1767685839979,-216.69893,0.0001782,2]
[400511132,1767685839988,-216.69893,0.0001782,2]
[400511134,1767685839998,-216.69893,0.0001782,2]
[400511136,1767685840008,-216.69893,0.0001782,2]
[400511138,1767685840017,-216.69893,0.0001782,2]
[400511140,1767685840026,-216.69893,0.0001782,2]
[400511142,1767685840035,-216.69893,0.0001782,2]
[400511145,1767685840045,-216.69893,0.0001782,2]
[400511147,1767685840055,-1000.0,0.00017852,2]
[400511149,1767685840066,-300.0,0.00017861,2]
[400511150,1767685840077,-300.0,0.00017863,2]
[400511152,1767685840087,-355.5882291,0.00017867,2]
[400511154,1767685840096,-326.16534788,0.00017872,2]
[400511156,1767685840106,-935.0,0.00017877,2]
[400511158,1767685840116,-1000.0,0.000179,2]
[400511160,1767685840125,-23428.33273883,0.000179,2]
[400511162,1767685840135,-704.82625683,0.000179,2]
[400511164,1767685840144,-218.41495829,0.000179,2]
[400511166,1767685840153,-198.87814067,0.000179,2]
[400511168,1767685840163,-300.0,0.00017916,2]
[400511170,1767685840173,-300.0,0.00017925,2]
[400511172,1767685840182,-500.0,0.00017973,2]
[400511174,1767685840191,-500.0,0.00017973,2]
[400511176,1767685840201,-500.0,0.00017973,2]
[400511178,1767685840210,-503.77342709,0.00017973,2]
[400511180,1767685840220,-150.0,0.00017973,2]
[400511182,1767685840230,-150.0,0.00017973,2]
[400511184,1767685840239,-920.2,0.00017981,2]
[400511186,1767685840249,-300.0,0.00017981,2]
[400511188,1767685840259,-158.5493897,0.00017982,2]
[400511191,1767685840274,-152.38329665,0.00017982,2]
[400511193,1767685840287,-300.0,0.00017986,2]
[400511195,1767685840297,-449.98907635,0.0001799,2]
[400511197,1767685840307,-500.0,0.00017998,2]
[400511199,1767685840316,-345.3210989,0.00017999,2]
[400511201,1767685840326,-518.84645465,0.00017999,2]
[400511203,1767685840335,-522.48563019,0.00017999,2]
[400511205,1767685840345,-300.0,0.00017999,2]
[400511207,1767685840355,-500.0,0.00017999,2]
[400511210,1767685840365,-500.0,0.00017999,2]
[400511211,1767685840374,-500.0,0.00017999,2]
[400511214,1767685840384,-323.15153578,0.00017999,2]
[400511237,1767685840594,-176.84846422,0.00017999,2]
[400511239,1767685840607,-516.66830415,0.00017999,2]
[400511241,1767685840621,-648.1809642,0.00018,2]
[400511244,1767685840632,-1182.8190358,0.00018,2]
[400511246,1767685840642,-77.1809642,0.00018,2]
[400511248,1767685840654,-1118.10003,0.00018,2]
[400511250,1767685840664,-17401.00640134,0.00018,2]
[400511252,1767685840680,-1707.39678199,0.00018,2]
[400511254,1767685840693,-4380.95966664,0.00018,2]
[400511257,1767685840704,-315.35615583,0.00018,2]
[400511259,1767685840713,-3745.26993812,0.00018,2]
[400511261,1767685840725,-455.20220362,0.00018,2]
[400511263,1767685840736,-11573.47728142,0.00018,2]
[400511265,1767685840747,-8460.0,0.00018,2]
[400511267,1767685840759,-40429.13440726,0.00018,2]
[400511269,1767685840772,-469.0,0.00018,2]
[400511271,1767685840782,-508.23,0.00018,7]
[400511273,1767685840791,-14627.17672956,0.00018,2]
[400511275,1767685840802,-2670629.50710555,0.00018,2]
[400511277,1767685840811,-154.0,0.00018,2]
[400511279,1767685840820,-154.0,0.00018,2]
[400511281,1767685840829,-163.14434927,0.00018,2]
[400511283,1767685840838,-150.0,0.00018028,2]
[400511285,1767685840847,-180.62,0.00018082,2]
[400511287,1767685840856,-160.3,0.00018128,2]
[400511289,1767685840865,-420.0,0.00018174,2]
[400511291,1767685840875,-193.0,0.00018204,2]
[400511293,1767685840884,-250.0,0.00018206,2]
[400511295,1767685840894,-1000.0,0.0001822,2]
[400511297,1767685840903,-1680.0,0.00018265,2]
[400511299,1767685840912,-300.0,0.00018296,2]
[400511301,1767685840921,-195.0,0.00018296,2]
[400511303,1767685840930,-2500.0,0.00018296,2]
[400511305,1767685840939,-300.0,0.00018338,2]
[400511307,1767685840948,-250.0,0.00018338,2]
[400511309,1767685840957,-250.0,0.00018361,2]
[400511311,1767685840967,-600.0,0.00018361,2]
[400511313,1767685840976,-1000.0,0.00018454,2]
[400511315,1767685840989,-500.0,0.00018521,2]
[400511317,1767685840998,-464.6041227,0.00018521,2]
[400511319,1767685841008,-640.17689625,0.00018521,2]
[400511321,1767685841018,-166.66,0.00018539,2]
[400511323,1767685841027,-9640.8800433,0.00018573,2]
[400511325,1767685841036,-23428.33273875,0.00018656,2]
[400511327,1767685841045,-1208.07,0.00018725,2]
[400511329,1767685841054,-151.51,0.000188,2]
[400511331,1767685841064,-151.51,0.000188,2]
[400511333,1767685841073,-151.51,0.000188,2]
[400511335,1767685841082,-151.51,0.000188,2]
[400511337,1767685841093,-151.51,0.000188,2]
[400511339,1767685841102,-151.51,0.000188,2]
[400511341,1767685841112,-151.51,0.000188,2]
[400511344,1767685841122,-151.51,0.000188,2]
[400511346,1767685841131,-151.51,0.000188,2]
[400511348,1767685841140,-151.51,0.000188,2]
[400511350,1767685841151,-151.51,0.000188,2]
[400511352,1767685841160,-151.51,0.000188,2]
[400511354,1767685841169,-151.51,0.000188,2]
[400511356,1767685841178,-151.51,0.000188,2]
[400511358,1767685841188,-151.51,0.000188,2]
[400511360,1767685841197,-160.3,0.00018952,2]
[400511362,1767685841207,-151.51,0.0001899,2]
[400511364,1767685841216,-323.23631266,0.00018999,2]
[400511366,1767685841225,-300.0,0.00019,2]
[400511368,1767685841234,-1229.11402496,0.00019,2]
[400511370,1767685841243,-97978.25416054,0.00019,2]
[400511372,1767685841253,-357.58810833,0.0001901,7]
[400511374,1767685841261,-450.84,0.00019018,2]
[400511376,1767685841271,-1345.0,0.00019051,2]
[400511378,1767685841280,-162.55,0.00019069,2]
[400511380,1767685841289,-229.53168465,0.00019082,2]
[400511382,1767685841298,-166.66,0.00019113,2]
[400511384,1767685841307,-3006.07249481,0.00019178,2]
[400511386,1767685841317,-20092.67,0.00019178,2]
[400511388,1767685841327,-291.4644801,0.00019178,2]
[400511390,1767685841337,-180.62,0.00019213,2]
[400511392,1767685841348,-920.2,0.00019328,2]
[400511394,1767685841358,-23428.33273875,0.00019411,2]
[400511396,1767685841367,-9640.8800433,0.00019448,2]
[400511398,1767685841377,-2096.1708713,0.00019478,2]
[400511400,1767685841387,-166.66,0.00019687,2]
[400511402,1767685841398,-160.3,0.00019776,2]
[400511404,1767685841407,-1326.649772,0.0001985,2]
[400511405,1767685841416,-15909.0352243,0.00019851,2]
[400511407,1767685841425,-480.0,0.00019858,2]
[400511410,1767685841434,-3433.8026181,0.00019874,2]
[400511412,1767685841443,-4913.25056532,0.000199,3]
[400511414,1767685841452,-2212.14447453,0.0001995,15]
[400511416,1767685841462,-504.3199228,0.00019973,2]
[400511418,1767685841475,-150.54524676,0.00019973,2]
[400511420,1767685841485,-500.0,0.00019973,2]
[400511422,1767685841495,-151.51,0.0001999,2]
[400511424,1767685841504,-151.51,0.0001999,2]
[400511426,1767685841514,-10897.42382596,0.0002,2]
[400511428,1767685841523,-1530.63340614,0.0002,2]
[400511430,1767685841533,-25550.35868933,0.0002,2]
[400511432,1767685841543,-758.83798412,0.0002,5]
[400511434,1767685841553,-3088.33,0.0002,2]
[400511436,1767685841562,-3950.0,0.0002,2]
[400511438,1767685841573,-40426.70922358,0.0002,10]
[400511440,1767685841586,-33431.78955604,0.0002,10]
[400511442,1767685841596,-7276.81753015,0.0002,2]
[400511444,1767685841606,-1292.31947838,0.0002,2]
[400511446,1767685841621,-1043.17239724,0.0002,2]
[400511448,1767685841630,-2858.721728,0.0002,2]
[400511450,1767685841639,-12901.87667595,0.0002,2]
[400511452,1767685841650,-1052.45242198,0.0002,2]
[400511454,1767685841659,-121313.83792556,0.0002,2]
[400511456,1767685841668,-252.707537,0.0002,2]
[400511458,1767685841677,-176.914862,0.0002,2]
[400511460,1767685841689,-263.621229,0.0002,2]
[400511462,1767685841698,-241.932821,0.0002,2]
[400511464,1767685841707,-241.932821,0.0002,2]
[400511466,1767685841718,-241.932821,0.0002,2]
[400511468,1767685841728,-352.893641,0.0002,2]
[400511469,1767685841737,-241.932821,0.0002,2]
[400511470,1767685841746,-352.893641,0.0002,2]
[400511471,1767685841755,-352.893641,0.0002,2]
[400511472,1767685841764,-352.893641,0.0002,2]
[400511473,1767685841774,-151.0,0.0002,2]
[400511474,1767685841783,-151.0,0.0002,2]
[400511475,1767685841792,-151.0,0.0002,2]
[400511476,1767685841802,-182.735076,0.0002,2]
[400511477,1767685841811,-151.0,0.0002,2]
[400511478,1767685841820,-1121.733031,0.0002,2]
[400511479,1767685841829,-1121.733031,0.0002,2]
[400511481,1767685841839,-151.0,0.0002,2]
[400511483,1767685841847,-1121.733031,0.0002,2]
[400511484,1767685841857,-151.0,0.0002,2]
[400511486,1767685841866,-1121.733031,0.0002,2]
[400511488,1767685841875,-151.0,0.0002,2]
[400511490,1767685841884,-185.078784,0.0002,2]
[400511492,1767685841894,-173.424888,0.0002,2]
[400511494,1767685841904,-173.424888,0.0002,2]
[400511496,1767685841914,-150.0,0.0002,2]
[400511498,1767685841923,-173.424888,0.0002,2]
[400511500,1767685841933,-150.0,0.0002,2]
[400511502,1767685841942,-195.08058581,0.0002,2]
[400511504,1767685841952,-173.424888,0.0002,2]
[400511506,1767685841961,-8720.0,0.0002001,2]
[400511508,1767685841971,-2351.0,0.00020056,2]
[400511510,1767685841980,-1005.07908299,0.000201,2]
[400511512,1767685841990,-449.98907635,0.00020157,2]
[400511514,1767685841999,-151.51,0.00020157,2]
[400511527,1767685842213,-23428.33273875,0.00020167,2]
[400511529,1767685842223,-467.7189422,0.00020169,2]
[400511531,1767685842232,-442.69,0.00020187,2]
[400511533,1767685842241,-1000.0,0.00020245,2]
[400511535,1767685842251,-166.66,0.00020261,2]
[400511537,1767685842259,-813.88046795,0.00020273,2]
[400511539,1767685842268,-9640.8800433,0.00020323,2]
[400511541,1767685842278,-180.62,0.00020343,2]
[400511543,1767685842287,-296.015576,0.00020348,2]
[400511545,1767685842296,-3549.7855774,0.0002035,2]
[400511546,1767685842305,-766.184928,0.00020373,2]
[400511549,1767685842315,-1000.0,0.00020521,2]
[400511551,1767685842324,-162.55,0.00020536,2]
[400511553,1767685842333,-193.55,0.00020548,2]
[400511554,1767685842342,-21481.14,0.00020548,2]
[400511557,1767685842351,-444.41864031,0.00020556,2]
[400511559,1767685842359,-160.3,0.000206,2]
[400511560,1767685842368,-920.2,0.00020675,2]
[400511562,1767685842378,-22616.80743394,0.000207,2]
[400511564,1767685842387,-177.70733782,0.00020821,2]
[400511566,1767685842396,-400.0,0.0002087,2]
[400511568,1767685842406,-402.77588387,0.0002087,2]
[400511570,1767685842415,-370.82279925,0.0002087,2]
[400511572,1767685842424,-167.39433605,0.0002089,2]
[400511574,1767685842434,-151.51,0.0002089,2]
[400511576,1767685842444,-51873.58313577,0.000209,30]
[400511578,1767685842453,-476.79,0.00020921,2]
[400511580,1767685842462,-173.424888,0.00020922,2]
[400511582,1767685842472,-173.424888,0.00020922,2]
[400511584,1767685842482,-173.424888,0.00020922,2]
[400511585,1767685842491,-173.424888,0.00020922,2]
[400511586,1767685842500,-23428.33273875,0.00020922,2]
[400511587,1767685842511,-151.51,0.0002098,2]
[400511588,1767685842522,-500.0,0.0002098,3]
[400511589,1767685842531,-226822.03547001,0.0002099,2]
[400511590,1767685842541,-156.451791,0.0002099,2]
[400511591,1767685842550,-241.932821,0.0002099,2]
[400511592,1767685842560,-241.932821,0.0002099,2]
[400511593,1767685842569,-241.932821,0.0002099,2]
[400511594,1767685842580,-352.893641,0.0002099,2]
[400511595,1767685842590,-241.932821,0.0002099,2]
[400511596,1767685842599,-352.893641,0.0002099,2]
[400511597,1767685842613,-352.893641,0.0002099,2]
[400511598,1767685842622,-352.893641,0.0002099,2]
[400511599,1767685842631,-151.0,0.0002099,2]
[400511600,1767685842640,-151.0,0.0002099,2]
[400511601,1767685842652,-151.0,0.0002099,2]
[400511602,1767685842661,-168.166784,0.0002099,2]
[400511603,1767685842670,-1121.733031,0.0002099,2]
[400511604,1767685842679,-1121.733031,0.0002099,2]
[400511605,1767685842690,-151.0,0.0002099,2]
[400511606,1767685842701,-1121.733031,0.0002099,2]
[400511607,1767685842710,-151.0,0.0002099,2]
[400511608,1767685842719,-1121.733031,0.0002099,2]
[400511609,1767685842729,-151.0,0.0002099,2]
[400511610,1767685842738,-151.51,0.0002099,2]
[400511611,1767685842747,-20000.0,0.00021,2]
[400511612,1767685842756,-1191.16510258,0.00021,2]
[400511613,1767685842766,-196.61170439,0.00021,2]
[400511614,1767685842775,-160.0,0.00021,7]
[400511615,1767685842784,-12491.06,0.00021068,2]
[400511616,1767685842794,-506.65163513,0.00021068,2]
[400511617,1767685842803,-476.79,0.00021195,2]
[400511618,1767685842812,-9640.8800433,0.00021199,2]
[400511619,1767685842821,-2000.0,0.000212,2]
[400511620,1767685842831,-506.248488,0.00021303,2]
[400511621,1767685842840,-6366.1,0.0002137,2]
[400511622,1767685842849,-160.3,0.00021424,2]
[400511623,1767685842858,-476.79,0.00021469,2]
[400511624,1767685842867,-57438.65090699,0.000215,2]
[400511625,1767685842877,-221.7670119,0.000215,2]
[400511626,1767685842886,-173.424888,0.000215,2]
[400511627,1767685842896,-173.424888,0.000215,2]
[400511628,1767685842905,-173.424888,0.000215,2]
[400511629,1767685842915,-173.424888,0.000215,2]
[400511630,1767685842924,-704.82625678,0.00021558,2]
[400511631,1767685842934,-151.51,0.00021668,2]
[400511632,1767685842943,-23428.33273875,0.00021678,2]
[400511633,1767685842952,-169.06116412,0.000217,2]
[400511634,1767685842962,-476.79,0.00021742,2]
[400511635,1767685842972,-1405.0,0.00021886,2]
[400511636,1767685842981,-616.385,0.00021886,2]
[400511637,1767685842990,-1390.117,0.00021886,2]
[400511638,1767685843000,-1266.0,0.00021886,2]
[400511639,1767685843009,-435.51,0.00021886,2]
[400511640,1767685843019,-6549.0,0.00021886,2]
[400511641,1767685843028,-2435.0,0.00021886,2]
[400511642,1767685843038,-150.313,0.00021886,2]
[400511643,1767685843047,-5000.0,0.00021918,2]
[400511644,1767685843056,-151.0,0.00021918,2]
[400511645,1767685843065,-151.0,0.00021918,2]
[400511646,1767685843074,-150.0,0.00021918,2]
[400511647,1767685843084,-150.0,0.00021918,2]
[400511648,1767685843093,-5113.99,0.0002192,2]
[400511649,1767685843103,-5113.99,0.0002192,2]
[400511650,1767685843112,-5113.99,0.0002192,2]
[400511651,1767685843122,-5113.99,0.0002192,2]
[400511652,1767685843131,-5113.99,0.0002192,2]
[400511653,1767685843140,-175.84813518,0.00021973,2]
[400511654,1767685843150,-3813.25,0.00022,7]
[400511655,1767685843160,-163.53,0.00022,2]
[400511656,1767685843170,-72653.91,0.00022,2]
[400511657,1767685843179,-162.55,0.00022003,2]
[400511658,1767685843189,-159.71,0.00022016,2]
[400511659,1767685843198,-920.2,0.00022023,2]
[400511660,1767685843208,-3292.0,0.00022023,2]
[400511661,1767685843217,-243.342,0.0002203,2]
[400511663,1767685843226,-150.0,0.0002203,2]
[400511664,1767685843235,-151.0,0.0002203,2]
[400511666,1767685843244,-151.047,0.0002203,2]
[400511668,1767685843253,-400.0,0.0002207,2]
[400511670,1767685843262,-300.0,0.0002207,2]
[400511672,1767685843272,-9640.8800433,0.00022074,2]
[400511674,1767685843280,-800.0,0.000221,8]
[400511675,1767685843290,-800.0,0.000221,8]
[400511676,1767685843300,-800.0,0.000221,8]
[400511677,1767685843309,-800.0,0.000221,8]
[400511679,1767685843319,-800.0,0.000221,8]
[400511681,1767685843329,-800.0,0.000221,8]
[400511683,1767685843338,-800.0,0.000221,8]
[400511685,1767685843348,-800.0,0.000221,8]
[400511687,1767685843357,-189.52138732,0.000221,2]
[400511689,1767685843367,-239.86281191,0.0002211,2]
[400511691,1767685843376,-160.3,0.00022248,2]
[400511692,1767685843385,-1000.0,0.00022269,2]
[400511694,1767685843395,-151.51,0.00022423,2]
[400511697,1767685843404,-23428.33273875,0.00022433,2]
[400511699,1767685843414,-2900.0,0.000225,15]
[400511701,1767685843424,-35434.58640439,0.000225,2]
[400511702,1767685843434,-151.0,0.000225,2]
[400511703,1767685843444,-241.932821,0.000225,2]
[400511704,1767685843453,-241.932821,0.000225,2]
[400511705,1767685843462,-241.932821,0.000225,2]
[400511706,1767685843472,-352.893641,0.000225,2]
[400511707,1767685843481,-241.932821,0.000225,2]
[400511708,1767685843491,-352.893641,0.000225,2]
[400511709,1767685843500,-352.893641,0.000225,2]
[400511710,1767685843510,-352.893641,0.000225,2]
[400511711,1767685843519,-151.0,0.000225,2]
[400511712,1767685843528,-151.0,0.000225,2]
[400511713,1767685843537,-151.0,0.000225,2]
[400511714,1767685843546,-522.3260812,0.0002271,2]
[400511715,1767685843555,-151.0,0.00022949,2]
[400511716,1767685843564,-151.0,0.00022949,2]
[400511717,1767685843573,-151.0,0.00022949,2]
[400511718,1767685843582,-9640.8800433,0.00022949,2]
[400511719,1767685843591,-150.0,0.00022973,2]
[400511720,1767685843601,-151.51,0.0002299,2]
[400511721,1767685843611,-1000.0,0.00023,14]
[400511722,1767685843623,-181533.96063649,0.00023,2]
[400511723,1767685843632,-1006.14105963,0.00023,2]
[400511724,1767685843641,-1121.733031,0.00023,2]
[400511725,1767685843651,-1121.733031,0.00023,2]
[400511726,1767685843662,-1121.733031,0.00023,2]
[400511727,1767685843671,-1121.733031,0.00023,2]
[400511728,1767685843680,-173.424888,0.00023,2]
[400511729,1767685843690,-173.424888,0.00023,2]
[400511730,1767685843700,-173.424888,0.00023,2]
[400511731,1767685843709,-173.424888,0.00023,2]
[400511732,1767685843718,-160.3,0.00023072,2]
[400511733,1767685843727,-2581.76674438,0.000231,2]
[400511734,1767685843737,-151.51,0.00023179,2]
[400511735,1767685843746,-23428.33273875,0.00023189,2]
[400511736,1767685843755,-198.51288907,0.000232,2]
[400511737,1767685843764,-526.92,0.00023255,2]
[400511738,1767685843773,-72653.91,0.000233,2]
[400511739,1767685843782,-920.2,0.0002337,2]
[400511740,1767685843791,-162.55,0.0002347,2]
[400511741,1767685843801,-200.0,0.000235,2]
[400511742,1767685843810,-250.0,0.00023521,2]
[400511743,1767685843820,-444.41864031,0.00023598,2]
[400511744,1767685843830,-9640.8800433,0.00023825,2]
[400511745,1767685843840,-242.31565174,0.00023859,2]
[400511746,1767685843850,-160.3,0.00023896,2]
[400511747,1767685843859,-831.905655,0.000239,2]
[400511748,1767685843869,-23428.33273875,0.00023944,2]
[400511749,1767685843880,-151.51,0.0002399,2]
[400511750,1767685843889,-16666.87358714,0.00024,2]
[400511751,1767685843898,-1019.54915216,0.00024,2]
[400511752,1767685843907,-3600.0,0.00024,2]
[400511753,1767685843917,-1232.91707299,0.00024,2]
[400511754,1767685843926,-5002.98328372,0.00024,2]
[400511755,1767685843935,-151.0,0.00024,2]
[400511756,1767685843945,-241.932821,0.00024,2]
[400511757,1767685843954,-241.932821,0.00024,2]
[400511758,1767685843964,-241.932821,0.00024,2]
[400511759,1767685843973,-352.893641,0.00024,2]
[400511760,1767685843982,-241.932821,0.00024,2]
[400511761,1767685843992,-352.893641,0.00024,2]
[400511762,1767685844001,-352.893641,0.00024,2]
[400511763,1767685844011,-352.893641,0.00024,2]
[400511764,1767685844020,-151.0,0.00024,2]
[400511765,1767685844030,-151.0,0.00024,2]
[400511766,1767685844039,-220.979084,0.00024,2]
[400511767,1767685844048,-1121.733031,0.00024,2]
[400511768,1767685844057,-1121.733031,0.00024,2]
[400511769,1767685844066,-1121.733031,0.00024,2]
[400511770,1767685844075,-1121.733031,0.00024,2]
[400511771,1767685844084,-350.0,0.00024068,2]
[400511772,1767685844094,-4609.0,0.00024183,2]
[400511773,1767685844104,-2219.98656035,0.00024199,2]
[400511774,1767685844113,-421.21037793,0.0002421,2]
[400511775,1767685844123,-3689.74283707,0.0002421,2]
[400511776,1767685844132,-158.54938967,0.00024259,2]
[400511777,1767685844141,-1000.0,0.00024294,2]
[400511778,1767685844151,-163.93901323,0.0002455,15]
[400511779,1767685844160,-450.0,0.00024616,2]
[400511780,1767685844169,-596.50093463,0.0002465,2]
[400511781,1767685844179,-1000.0,0.00024658,2]
[400511782,1767685844188,-935.76,0.00024658,2]
[400511783,1767685844197,-155.485538,0.00024658,2]
[400511784,1767685844206,-153.48,0.00024658,3]
[400511785,1767685844218,-9640.8800433,0.000247,2]
[400511786,1767685844228,-151.0,0.000247,7]
[400511787,1767685844237,-151.0,0.000247,7]
[400511788,1767685844246,-151.0,0.000247,7]
[400511789,1767685844255,-23428.33273875,0.000247,2]
[400511790,1767685844265,-920.2,0.00024717,2]
[400511791,1767685844275,-160.3,0.0002472,2]
[400511792,1767685844286,-72653.91,0.000248,2]
[400511793,1767685844297,-241.932821,0.000248,7]
[400511794,1767685844306,-241.932821,0.000248,7]
[400511795,1767685844315,-241.932821,0.000248,7]
[400511796,1767685844327,-352.893641,0.000248,2]
[400511797,1767685844336,-241.932825,0.000248,7]
[400511798,1767685844345,-352.893641,0.000248,2]
[400511799,1767685844354,-352.893641,0.000248,2]
[400511800,1767685844363,-352.893637,0.000248,2]
[400511801,1767685844372,-151.0,0.000248,7]
[400511802,1767685844381,-151.0,0.000248,7]
[400511803,1767685844391,-480714.31666833,0.000248,3]
[400511804,1767685844452,-5477.16,0.000248,3]
[400511805,1767685844463,-1097.20293203,0.000248,3]
[400511806,1767685844475,-796.87788394,0.000248,3]
[400511807,1767685844489,-7919.56508311,0.000248,3]
[400511808,1767685844500,-2175.02066338,0.000248,3]
[400511809,1767685844512,-1109.86639144,0.000248,3]
[400511810,1767685844524,-1162.52778613,0.000248,3]
[400511811,1767685844535,-266.6244499,0.000248,3]
[400511812,1767685844549,-17434.39884408,0.000248,3]
[400511813,1767685844777,-3874.85299278,0.000248,3]
[400511814,1767685844789,-754.1812733,0.000248,3]
[400511815,1767685844799,-65167.97299719,0.000248,3]
[400511816,1767685844811,-470.5091866,0.000248,3]
[400511817,1767685844836,-722.053332,0.000248,3]
[400511818,1767685846342,-3454.40730079,0.000248,3]
[400511819,1767685846353,-423.74647872,0.000248,3]
[400511820,1767685846365,-2183.75458493,0.000248,3]
[400511821,1767685846376,-18307.83594635,0.000248,3]
[400511822,1767685846386,-1121.733031,0.000248,7]
[400511823,1767685846396,-1121.733031,0.000248,7]
[400511824,1767685846406,-151.0,0.000248,7]
[400511825,1767685846415,-1121.733031,0.000248,7]
[400511826,1767685846425,-151.0,0.000248,7]
[400511827,1767685846435,-1121.733035,0.000248,7]
[400511828,1767685846446,-151.0,0.000248,7]
[400511829,1767685846458,-173.424888,0.000248,7]
[400511830,1767685846468,-173.424888,0.000248,7]
[400511831,1767685846481,-173.424888,0.000248,7]
[400511832,1767685846490,-173.424888,0.000248,7]
[400511833,1767685846500,-500.0,0.00024822,2]
[400511834,1767685846509,-1295.021,0.00024886,2]
[400511835,1767685846518,-1329.0,0.00024886,2]
[400511836,1767685846527,-1266.0,0.00024886,2]
[400511837,1767685846538,-6549.0,0.00024886,2]